[Event "Turkish Cup 2024"]
[Site "Denizli"]
[Date "2024.07.30"]
[Round "1"]
[White "Ilgaz, Yusuf Kerem"]
[Black "Vardar, Kuzey"]
[Result "1-0"]
[ECO "B11"]
[WhiteElo "2006"]
[BlackElo "1569"]
[Annotator "RC"]
[PlyCount "104"]
[EventDate "2024.08.01"]
[EventType "swiss"]
[EventCountry "TUR"]
[SourceTitle "playchess.com"]
[Source "ChessBase"]
[SourceQuality "1"]
[TimeControl "5400+30"]

1. e4 {[%emt 0:01:00]} c6 {[%emt 0:01:00]} 2. Nc3 {[%emt 0:00:00]} d5 {[%emt 0:00:30]} 3. Nf3 {[%emt 0:00:00]} dxe4 {[%emt 0:01:30]} 4. Nxe4 {[%emt 0:00:00]} Bg4 {[%emt 0:00:30]} 5. h3 {[%emt 0:03:00]} Bxf3 {[%emt 0:01:30]} 6. Qxf3 {[%emt 0:00:30]} Nf6 {[%emt 0:01:30]} 7. b3 {[%emt 0:02:30]} Nbd7 {[%emt 0:05:30]} 8. Bb2 {[%emt 0:00:30]} e6 {[%emt 0:03:30]} 9. O-O-O {[%emt 0:01:30]} Be7 {[%emt 0:02:30]} 10. g4 {[%emt 0:09:30]} Nxe4 {[%emt 0:05:30]} 11. Qxe4 {[%emt 0:00:30]} Bf6 {[%emt 0:00:00]} 12. d4 {[%emt 0:02:30]} Qa5 {[%emt 0:03:00]} 13. Kb1 {[%emt 0:02:30]} O-O-O {[%emt 0:01:30]} 14. Bg2 {[%emt 0:02:30]} Qd5 {[%emt 0:04:30]} 15. Qxd5 {[%emt 0:00:30]} exd5 {[%emt 0:01:30]} 16. h4 {[%emt 0:01:30]} h6 {[%emt 0:04:30]} 17. f4 {[%emt 0:02:30]} g6 {[%emt 0:04:30]} 18. Bf1 {[%emt 0:07:30]} Rde8 {[%emt 0:08:30]} 19. Bd3 {[%emt 0:00:30]} Bg7 {[%emt 0:06:30]} 20. h5 {[%emt 0:03:30]} gxh5 {[%emt 0:02:30]} 21. Rxh5 {[%emt 0:02:30]} Nf6 {[%emt 0:00:30]} 22. Bf5+ {[%emt 0:00:00]} Kc7 {[%emt 0:00:30]} 23. Rh2 {[%emt 0:00:00]} Ne4 {[%emt 0:01:30]} 24. Kc1 {[%emt 0:05:30]} Bf8 {[%emt 0:04:30]} 25. Rd3 {[%emt 0:07:30]} Bd6 {[%emt 0:02:30]} 26. Rf3 {[%emt 0:00:30]} Ng5 {[%emt 0:01:30]} 27. Rf1 {[%emt 0:02:30]} Ne4 {[%emt 0:00:30]} 28. Rh3 {[%emt 0:00:30]} b5 {[%emt 0:05:30]} 29. c3 {[%emt 0:01:30]} a5 {[%emt 0:00:30]} 30. Kc2 {[%emt 0:02:30]} Kb6 {[%emt 0:02:30]} 31. Bc1 {[%emt 0:01:30]} b4 {[%emt 0:05:30]} 32. c4 {[%emt 0:01:30]} Kb7 {[%emt 0:00:30]} 33. Kd3 {[%emt 0:03:30]} Nc3 {[%emt 0:01:22]} 34. c5 {[%emt 0:02:30]} Bc7 {[%emt 0:00:34]} 35. a4 {[%emt 0:01:30]} Kb8 {[%emt 0:02:43]} 36. Be3 {[%emt 0:02:30]} Kb7 {[%emt 0:00:20]} 37. Rfh1 {[%emt 0:01:30]} Re7 {[%emt 0:01:35]} 38. g5 {[%emt 0:04:30]} h5 {[%emt 0:00:11]} 39. Rxh5 {[%emt 0:01:30]} Rhe8 {[%emt 0:00:08]} 40. R5h3 {[%emt 0:00:30]} Ne2 {[%emt 0:02:52]} 41. Rf1 {[%emt 0:00:30]} Nc3 {[%emt 0:00:25]} 42. g6 {[%emt 0:02:30]} fxg6 {[%emt 0:00:13]} 43. Bxg6 {[%emt 0:00:30]} Rg8 {[%emt 0:00:50]} 44. f5 {[%emt 0:01:30]} Re4 {[%emt 0:00:59]} 45. f6 {[%emt 0:01:30]} Rg4 {[%emt 0:00:51]} 46. f7 {[%emt 0:00:30]} R4xg6 {[%emt 0:00:30]} 47. f8=Q {[%emt 0:00:56]} Rxf8 {[%emt 0:00:30]} 48. Rxf8 {[%emt 0:00:04]} Rg7 {[%emt 0:00:55]} 49. Rhf3 {[%emt 0:01:04]} Ne4 {[%emt 0:01:11]} 50. R8f7 {[%emt 0:00:16]} Rxf7 {[%emt 0:00:27]} 51. Rxf7 {[%emt 0:00:30]} Kc8 {[%emt 0:00:00]} 52. Bf4 {[%emt 0:01:46]} Nc3 {[%emt 0:00:13]} 1-0

[Event "Turkish Cup 2024"]
[Site "Denizli"]
[Date "2024.07.30"]
[Round "1"]
[White "Bulgurlu, Okan"]
[Black "Kanik, Ahmet"]
[Result "1-0"]
[ECO "A07"]
[WhiteElo "1964"]
[BlackElo "1597"]
[Annotator "RC"]
[PlyCount "55"]
[EventDate "2024.08.01"]
[EventType "swiss"]
[EventCountry "TUR"]
[SourceTitle "playchess.com"]
[Source "ChessBase"]
[SourceQuality "1"]
[TimeControl "5400+30"]

1. Nf3 {[%emt 0:01:00]} Nf6 {[%emt 0:01:00]} 2. g3 {[%emt 0:00:30]} d5 {[%emt 0:00:30]} 3. Bg2 {[%emt 0:00:00]} h6 {[%emt 0:00:30]} 4. O-O {[%emt 0:00:00]} Bf5 {[%emt 0:00:00]} 5. c4 {[%emt 0:00:30]} e6 {[%emt 0:01:00]} 6. Qb3 {[%emt 0:01:30]} dxc4 {[%emt 0:08:30]} 7. Qxb7 {[%emt 0:00:30]} Nbd7 {[%emt 0:01:30]} 8. Nd4 Rb8 {[%emt 0:01:30]} 9. Qc6 {[%emt 0:02:00]} Bc5 {[%emt 0:03:30]} 10. Nxf5 {[%emt 0:00:30]} exf5 {[%emt 0:00:30]} 11. Qf3 {[%emt 0:00:30]} O-O {[%emt 0:00:30]} 12. Qxf5 {[%emt 0:00:30]} Re8 {[%emt 0:01:30]} 13. Nc3 {[%emt 0:00:30]} Ne5 {[%emt 0:03:30]} 14. Ne4 {[%emt 0:06:30]} Nxe4 {[%emt 0:01:30]} 15. Bxe4 {[%emt 0:00:30]} Rb6 {[%emt 0:03:30]} 16. Qh7+ {[%emt 0:01:30]} Kf8 {[%emt 0:00:30]} 17. b3 {[%emt 0:02:30]} Qd4 {[%emt 0:08:30]} 18. Rb1 {[%emt 0:00:30]} Ng4 {[%emt 0:02:30]} 19. Bb2 {[%emt 0:02:30]} Rxe4 {[%emt 0:07:30]} 20. Bxd4 {[%emt 0:00:30]} Rxd4 {[%emt 0:00:00]} 21. e3 {[%emt 0:00:30]} Rxd2 {[%emt 0:01:00]} 22. Qf5 {[%emt 0:00:30]} Bb4 {[%emt 0:02:30]} 23. Qxg4 {[%emt 0:00:30]} c3 {[%emt 0:00:30]} 24. a3 {[%emt 0:00:00]} c2 {[%emt 0:01:30]} 25. Qc8+ {[%emt 0:01:00]} Ke7 {[%emt 0:00:30]} 26. Qxc7+ {[%emt 0:00:30]} Kf6 {[%emt 0:00:00]} 27. Rbc1 {[%emt 0:00:00]} Bd6 {[%emt 0:01:00]} 28. Qc3+ {[%emt 0:00:00]} 1-0

[Event "Turkish Cup 2024"]
[Site "Denizli"]
[Date "2024.07.30"]
[Round "1"]
[White "Hatirli, Ugur Can"]
[Black "Civlez, Emin Kadir"]
[Result "1-0"]
[ECO "D41"]
[WhiteElo "1948"]
[BlackElo "1563"]
[Annotator "RC"]
[PlyCount "77"]
[EventDate "2024.08.01"]
[EventType "swiss"]
[EventCountry "TUR"]
[SourceTitle "playchess.com"]
[Source "ChessBase"]
[SourceQuality "1"]
[TimeControl "5400+30"]

1. d4 {[%emt 0:01:00]} d5 {[%emt 0:01:00]} 2. c4 {[%emt 0:00:00]} e6 {[%emt 0:00:30]} 3. Nf3 {[%emt 0:00:00]} c5 {[%emt 0:00:30]} 4. Nc3 {[%emt 0:02:30]} Nf6 {[%emt 0:02:30]} 5. cxd5 {[%emt 0:00:30]} Nxd5 {[%emt 0:00:30]} 6. e3 {[%emt 0:01:30]} Nxc3 {[%emt 0:02:30]} 7. bxc3 {[%emt 0:00:30]} cxd4 {[%emt 0:00:30]} 8. cxd4 {[%emt 0:01:30]} Nc6 {[%emt 0:00:30]} 9. Bd3 {[%emt 0:00:30]} Bb4+ {[%emt 0:02:30]} 10. Kf1 {[%emt 0:05:30]} Qb6 {[%emt 0:02:30]} 11. Rb1 {[%emt 0:01:30]} Qc7 {[%emt 0:05:30]} 12. Qc2 {[%emt 0:06:30]} Bd6 {[%emt 0:02:30]} 13. Bd2 {[%emt 0:02:30]} Bd7 {[%emt 0:01:30]} 14. Ng5 {[%emt 0:06:30]} f5 {[%emt 0:05:30]} 15. Qb3 {[%emt 0:07:30]} Ke7 {[%emt 0:04:30]} 16. Qxb7 {[%emt 0:05:30]} Rab8 {[%emt 0:06:30]} 17. Qxc7 {[%emt 0:00:30]} Rxb1+ {[%emt 0:00:30]} 18. Bxb1 {[%emt 0:00:30]} Bxc7 {[%emt 0:00:00]} 19. Ke2 {[%emt 0:18:30]} h6 {[%emt 0:01:00]} 20. Nf3 {[%emt 0:00:30]} Rb8 {[%emt 0:01:30]} 21. Bc3 {[%emt 0:05:30]} Ba5 {[%emt 0:02:30]} 22. Bxa5 {[%emt 0:03:30]} Nxa5 {[%emt 0:00:00]} 23. Ne5 {[%emt 0:01:30]} Rb2+ {[%emt 0:02:00]} 24. Kf3 {[%emt 0:00:30]} Bc6+ {[%emt 0:01:30]} 25. Nxc6+ {[%emt 0:04:30]} Nxc6 {[%emt 0:00:00]} 26. Bd3 {[%emt 0:06:37]} Rxa2 {[%emt 0:03:00]} 27. Bb5 {[%emt 0:00:57]} Kd6 {[%emt 0:03:30]} 28. Rc1 {[%emt 0:02:12]} Nb4 {[%emt 0:01:30]} 29. Rc8 {[%emt 0:03:33]} Ke7 {[%emt 0:04:30]} 30. Rc7+ {[%emt 0:01:52]} Kf6 {[%emt 0:00:00]} 31. Be8 {[%emt 0:01:24]} Nd5 {[%emt 0:10:00]} 32. Rf7+ {[%emt 0:00:10]} Kg5 {[%emt 0:00:30]} 33. Rxg7+ {[%emt 0:00:16]} Kf6 {[%emt 0:00:00]} 34. Rf7+ {[%emt 0:00:13]} Kg5 {[%emt 0:00:00]} 35. g3 {[%emt 0:02:48]} h5 {[%emt 0:02:30]} 36. Rh7 {[%emt 0:00:29]} Rc2 {[%emt 0:05:30]} 37. h4+ {[%emt 0:00:18]} Kf6 {[%emt 0:00:30]} 38. Rf7+ {[%emt 0:00:05]} Kg6 {[%emt 0:00:30]} 39. Rc7+ {[%emt 0:00:10]} 1-0

[Event "Turkish Cup 2024"]
[Site "Denizli"]
[Date "2024.07.30"]
[Round "1"]
[White "Kocakaplan, Emre"]
[Black "Kayikcioglu, Murat"]
[Result "1-0"]
[ECO "E01"]
[WhiteElo "1926"]
[BlackElo "1558"]
[Annotator "ChessBase"]
[PlyCount "81"]
[EventDate "2024.08.01"]
[EventType "swiss"]
[EventCountry "TUR"]
[SourceTitle "playchess.com"]
[Source "ChessBase"]
[SourceQuality "1"]
[TimeControl "5400+30"]

1. d4 {[%emt 0:01:00]} d5 {[%emt 0:01:00]} 2. Nf3 {[%emt 0:00:30]} Nf6 {[%emt 0:00:30]} 3. c4 {[%emt 0:00:00]} e6 {[%emt 0:00:30]} 4. g3 {[%emt 0:00:00]} c6 {[%emt 0:01:30]} 5. Qc2 {[%emt 0:00:30]} Nbd7 {[%emt 0:08:30]} 6. Bg2 {[%emt 0:00:30]} Ne4 {[%emt 0:04:30]} 7. O-O {[%emt 0:00:30]} f5 {[%emt 0:00:30]} 8. Nc3 {[%emt 0:01:30]} Ndf6 {[%emt 0:02:30]} 9. Ne5 {[%emt 0:04:30]} Be7 {[%emt 0:00:30]} 10. f3 {[%emt 0:01:30]} Nd6 {[%emt 0:01:30]} 11. c5 {[%emt 0:04:30]} Nf7 {[%emt 0:00:30]} 12. Nxf7 {[%emt 0:00:30]} Kxf7 {[%emt 0:00:30]} 13. Be3 {[%emt 0:01:30]} h5 {[%emt 0:02:30]} 14. h3 {[%emt 0:12:30]} Bd7 {[%emt 0:00:30]} 15. Bf2 {[%emt 0:00:30]} g5 {[%emt 0:00:30]} 16. e4 {[%emt 0:00:30]} Qg8 {[%emt 0:02:30]} 17. exf5 {[%emt 0:03:30]} exf5 {[%emt 0:00:30]} 18. Rae1 {[%emt 0:00:30]} g4 {[%emt 0:01:30]} 19. fxg4 {[%emt 0:25:30]} hxg4 {[%emt 0:00:30]} 20. h4 {[%emt 0:01:30]} Rf8 {[%emt 0:05:30]} 21. Be3 {[%emt 0:01:30]} Nh5 {[%emt 0:01:30]} 22. Nxd5 {[%emt 0:04:30]} Nxg3 {[%emt 0:01:30]} 23. Nxe7 {[%emt 0:03:30]} Qh7 {[%emt 0:01:30]} 24. Bg5 {[%emt 0:01:30]} Nxf1 {[%emt 0:02:30]} 25. Rxf1 {[%emt 0:00:30]} Ke8 {[%emt 0:00:30]} 26. d5 {[%emt 0:01:30]} f4 {[%emt 0:03:30]} 27. Be4 {[%emt 0:00:30]} Qxe7 {[%emt 0:02:30]} 28. Bxe7 {[%emt 0:00:30]} Kxe7 {[%emt 0:00:30]} 29. dxc6 {[%emt 0:00:30]} bxc6 {[%emt 0:00:30]} 30. Qd2 {[%emt 0:00:30]} f3 {[%emt 0:00:30]} 31. Qd6+ {[%emt 0:00:30]} Ke8 {[%emt 0:00:30]} 32. Bxc6 {[%emt 0:00:00]} Bxc6 {[%emt 0:00:30]} 33. Qxc6+ {[%emt 0:00:00]} Kf7 {[%emt 0:00:30]} 34. Qd5+ {[%emt 0:00:00]} Kg6 {[%emt 0:00:00]} 35. Qg5+ {[%emt 0:00:00]} Kh7 {[%emt 0:00:00]} 36. Qh5+ {[%emt 0:00:30]} Kg7 {[%emt 0:00:30]} 37. Qxg4+ {[%emt 0:00:30]} Kh7 {[%emt 0:00:00]} 38. Kh2 {[%emt 0:00:00]} Rhg8 {[%emt 0:00:00]} 39. Qh5+ {[%emt 0:00:00]} Kg7 {[%emt 0:00:30]} 40. Rg1+ {[%emt 0:00:00]} Kf6 {[%emt 0:00:30]} 41. Qxf3+ {[%emt 0:00:00]} 1-0

[Event "Turkish Cup 2024"]
[Site "Denizli"]
[Date "2024.07.30"]
[Round "1"]
[White "Topal, Hasan Gokmen"]
[Black "Oruc, Mustafa Ismet"]
[Result "1-0"]
[ECO "B31"]
[WhiteElo "1905"]
[BlackElo "1453"]
[Annotator "ChessBase"]
[PlyCount "73"]
[EventDate "2024.08.01"]
[EventType "swiss"]
[EventCountry "TUR"]
[SourceTitle "playchess.com"]
[Source "ChessBase"]
[SourceQuality "1"]
[TimeControl "5400+30"]

1. e4 {[%emt 0:01:00]} c5 {[%emt 0:01:00]} 2. Nf3 {[%emt 0:00:00]} Nc6 {[%emt 0:00:30]} 3. Bb5 {[%emt 0:00:00]} g6 {[%emt 0:00:30]} 4. Bxc6 {[%emt 0:00:30]} bxc6 {[%emt 0:00:30]} 5. O-O {[%emt 0:00:00]} Bg7 {[%emt 0:00:00]} 6. Re1 {[%emt 0:01:00]} d5 {[%emt 0:00:00]} 7. e5 {[%emt 0:00:30]} e6 {[%emt 0:00:30]} 8. d3 {[%emt 0:00:30]} h6 {[%emt 0:00:30]} 9. b3 {[%emt 0:00:30]} Ba6 {[%emt 0:07:30]} 10. Nc3 {[%emt 0:02:30]} Bb5 {[%emt 0:01:30]} 11. a4 {[%emt 0:02:30]} Ba6 {[%emt 0:00:30]} 12. Ba3 {[%emt 0:00:30]} Qb6 {[%emt 0:03:30]} 13. Rb1 {[%emt 0:00:30]} Ne7 {[%emt 0:00:30]} 14. b4 {[%emt 0:01:30]} cxb4 {[%emt 0:01:30]} 15. d4 {[%emt 0:03:30]} c5 {[%emt 0:01:30]} 16. dxc5 {[%emt 0:00:30]} Qxc5 {[%emt 0:00:30]} 17. Bxb4 {[%emt 0:00:30]} Qc7 {[%emt 0:02:30]} 18. Nb5 {[%emt 0:03:30]} Bxb5 {[%emt 0:01:30]} 19. axb5 {[%emt 0:00:30]} O-O {[%emt 0:00:30]} 20. Nd4 {[%emt 0:04:30]} Rfe8 {[%emt 0:04:30]} 21. Qe2 {[%emt 0:06:30]} Nc8 {[%emt 0:05:30]} 22. c3 {[%emt 0:10:30]} Nb6 {[%emt 0:04:30]} 23. Ra1 {[%emt 0:01:30]} Nc4 {[%emt 0:02:30]} 24. f4 {[%emt 0:00:00]} Qb6 {[%emt 0:02:30]} 25. Ra6 {[%emt 0:01:00]} Qb7 {[%emt 0:01:30]} 26. h4 {[%emt 0:01:30]} g5 {[%emt 0:01:30]} 27. hxg5 {[%emt 0:01:30]} hxg5 {[%emt 0:00:00]} 28. g3 {[%emt 0:00:30]} gxf4 {[%emt 0:02:00]} 29. gxf4 {[%emt 0:00:30]} Nb6 {[%emt 0:01:30]} 30. Qg4 {[%emt 0:00:30]} Nd7 {[%emt 0:02:30]} 31. f5 {[%emt 0:10:30]} f6 {[%emt 0:02:30]} 32. fxe6 {[%emt 0:03:30]} Nxe5 {[%emt 0:00:30]} 33. Rxe5 {[%emt 0:00:00]} fxe5 {[%emt 0:00:30]} 34. Nf5 {[%emt 0:00:00]} Rf8 {[%emt 0:02:30]} 35. Bxf8 {[%emt 0:00:30]} Rxf8 {[%emt 0:00:30]} 36. e7 {[%emt 0:00:30]} Rxf5 {[%emt 0:00:00]} 37. e8=Q+ {[%emt 0:00:00]} 1-0

[Event "Turkish Cup 2024"]
[Site "Denizli"]
[Date "2024.07.30"]
[Round "1"]
[White "Cakir, Ege"]
[Black "Kaya, Huseyin Talha"]
[Result "1-0"]
[ECO "E16"]
[WhiteElo "1889"]
[BlackElo "1621"]
[Annotator "NA"]
[PlyCount "51"]
[EventDate "2024.08.01"]
[EventType "swiss"]
[EventCountry "TUR"]
[SourceTitle "playchess.com"]
[Source "ChessBase"]
[SourceQuality "1"]
[TimeControl "5400+30"]

1. d4 {[%emt 0:01:00]} Nf6 {[%emt 0:01:00]} 2. Nf3 {[%emt 0:00:00]} d5 {[%emt 0:00:00]} 3. g3 {[%emt 0:01:00]} c5 {[%emt 0:00:00]} 4. Bg2 {[%emt 0:00:00]} e6 {[%emt 0:03:30]} 5. O-O {[%emt 0:01:00]} b6 {[%emt 0:01:30]} 6. c4 {[%emt 0:00:00]} Bb7 {[%emt 0:00:30]} 7. Nc3 {[%emt 0:07:00]} h6 {[%emt 0:02:30]} 8. Bf4 {[%emt 0:14:30]} a6 {[%emt 0:20:30]} 9. Ne5 {[%emt 0:11:30]} g5 {[%emt 0:45:30]} 10. Be3 {[%emt 0:01:30]} Nbd7 {[%emt 0:01:21]} 11. Qa4 {[%emt 0:04:30]} Qc7 {[%emt 0:13:27]} 12. Nxd7 {[%emt 0:05:30]} Qxd7 {[%emt 0:00:28]} 13. Qxd7+ {[%emt 0:00:30]} Kxd7 {[%emt 0:00:30]} 14. Rfd1 {[%emt 0:00:00]} Rb8 {[%emt 0:04:13]} 15. b3 {[%emt 0:07:00]} Be7 {[%emt 0:02:28]} 16. dxc5 {[%emt 0:00:30]} bxc5 {[%emt 0:00:30]} 17. cxd5 {[%emt 0:00:30]} exd5 {[%emt 0:00:01]} 18. Nxd5 {[%emt 0:00:30]} Nxd5 {[%emt 0:00:00]} 19. Bxd5 {[%emt 0:00:30]} Bxd5 {[%emt 0:00:20]} 20. Rxd5+ {[%emt 0:00:30]} Kc6 {[%emt 0:00:30]} 21. Rf5 {[%emt 0:00:00]} Rhf8 {[%emt 0:00:52]} 22. Rc1 {[%emt 0:00:00]} Rb5 {[%emt 0:00:12]} 23. Rc3 {[%emt 0:00:30]} Bd6 {[%emt 0:01:37]} 24. a4 {[%emt 0:00:30]} Ra5 {[%emt 0:00:01]} 25. Rf6 {[%emt 0:00:30]} Kd5 {[%emt 0:01:08]} 26. Rd3+ {[%emt 0:00:30]} 1-0

[Event "Turkish Cup 2024"]
[Site "Denizli"]
[Date "2024.07.30"]
[Round "1"]
[White "Karaca, Yigit"]
[Black "Tufaner, Ayaz"]
[Result "1-0"]
[ECO "B24"]
[WhiteElo "1879"]
[BlackElo "1517"]
[Annotator "NA"]
[PlyCount "65"]
[EventDate "2024.08.01"]
[EventType "swiss"]
[EventCountry "TUR"]
[SourceTitle "playchess.com"]
[Source "ChessBase"]
[SourceQuality "1"]
[TimeControl "5400+30"]

1. e4 {[%emt 0:01:00]} c5 {[%emt 0:01:00]} 2. Nc3 {[%emt 0:00:30]} Nc6 {[%emt 0:00:00]} 3. g3 {[%emt 0:00:00]} Nf6 {[%emt 0:01:00]} 4. Bg2 {[%emt 0:00:00]} d6 {[%emt 0:00:30]} 5. h3 {[%emt 0:01:30]} e5 {[%emt 0:02:30]} 6. d3 {[%emt 0:00:00]} h6 {[%emt 0:01:30]} 7. Nf3 {[%emt 0:04:00]} a6 {[%emt 0:02:30]} 8. O-O {[%emt 0:01:30]} Be6 {[%emt 0:00:30]} 9. a3 {[%emt 0:01:30]} Qd7 {[%emt 0:02:30]} 10. Kh2 {[%emt 0:00:00]} Be7 {[%emt 0:00:30]} 11. Be3 {[%emt 0:04:00]} g5 {[%emt 0:00:30]} 12. Nd2 {[%emt 0:01:30]} h5 {[%emt 0:01:30]} 13. f4 {[%emt 0:00:30]} gxf4 {[%emt 0:07:30]} 14. gxf4 {[%emt 0:00:30]} exf4 {[%emt 0:03:30]} 15. Bxf4 {[%emt 0:01:30]} Rg8 {[%emt 0:00:30]} 16. Rf2 {[%emt 0:04:30]} O-O-O {[%emt 0:03:30]} 17. Nd5 {[%emt 0:03:30]} Bg4 {[%emt 0:05:30]} 18. Nb6+ {[%emt 0:01:30]} Kc7 {[%emt 0:00:30]} 19. Nxd7 {[%emt 0:00:30]} Bxd1 {[%emt 0:00:30]} 20. Nxf6 {[%emt 0:00:30]} Bxf6 {[%emt 0:00:30]} 21. Rxd1 {[%emt 0:00:00]} Bh4 {[%emt 0:00:00]} 22. Rff1 {[%emt 0:00:00]} Nd4 {[%emt 0:01:00]} 23. Nf3 {[%emt 0:00:30]} Ne2 {[%emt 0:01:30]} 24. Nxh4 {[%emt 0:00:30]} Nxf4 {[%emt 0:00:30]} 25. Rxf4 {[%emt 0:00:30]} Rg7 {[%emt 0:00:30]} 26. Rdf1 {[%emt 0:00:30]} Rf8 {[%emt 0:00:00]} 27. Rf6 {[%emt 0:00:00]} Kd7 {[%emt 0:00:00]} 28. Nf5 {[%emt 0:00:00]} Rg6 {[%emt 0:00:00]} 29. Ne3 {[%emt 0:00:00]} Rxf6 {[%emt 0:00:00]} 30. Rxf6 {[%emt 0:00:00]} Ke7 {[%emt 0:00:30]} 31. Nd5+ {[%emt 0:00:00]} Kd8 {[%emt 0:00:30]} 32. Bf3 {[%emt 0:00:00]} b5 {[%emt 0:00:00]} 33. Bxh5 {[%emt 0:00:30]} 1-0

[Event "Turkish Cup 2024"]
[Site "Denizli"]
[Date "2024.07.30"]
[Round "1"]
[White "Avci, Ahmet Turhan"]
[Black "Dirikolu, Deniz"]
[Result "0-1"]
[ECO "C25"]
[WhiteElo "1679"]
[BlackElo "1911"]
[Annotator "ChessBase"]
[PlyCount "52"]
[EventDate "2024.08.01"]
[EventType "swiss"]
[EventCountry "TUR"]
[SourceTitle "playchess.com"]
[Source "ChessBase"]
[SourceQuality "1"]
[TimeControl "5400+30"]

1. e4 {[%emt 0:01:00]} e5 {[%emt 0:01:00]} 2. Nc3 {[%emt 0:00:00]} Nc6 {[%emt 0:00:00]} 3. f4 {[%emt 0:00:00]} exf4 {[%emt 0:01:00]} 4. Nf3 {[%emt 0:00:30]} g5 {[%emt 0:00:30]} 5. Bc4 {[%emt 0:00:30]} d6 {[%emt 0:06:30]} 6. O-O {[%emt 0:03:30]} Bg4 {[%emt 0:00:30]} 7. d4 {[%emt 0:13:30]} Bg7 {[%emt 0:00:30]} 8. Bb5 {[%emt 0:09:30]} a6 {[%emt 0:11:30]} 9. Bxc6+ {[%emt 0:00:30]} bxc6 {[%emt 0:00:00]} 10. Qd3 {[%emt 0:00:30]} h6 {[%emt 0:00:00]} 11. Bd2 {[%emt 0:02:30]} Ne7 {[%emt 0:00:30]} 12. Rae1 {[%emt 0:04:30]} O-O {[%emt 0:00:30]} 13. h4 {[%emt 0:20:30]} Ng6 {[%emt 0:08:30]} 14. hxg5 {[%emt 0:09:30]} hxg5 {[%emt 0:00:30]} 15. Nd1 {[%emt 0:01:30]} Bd7 {[%emt 0:06:30]} 16. Nh2 {[%emt 0:04:30]} c5 {[%emt 0:00:30]} 17. e5 {[%emt 0:07:54]} dxe5 {[%emt 0:03:30]} 18. d5 {[%emt 0:01:45]} f5 {[%emt 0:01:30]} 19. Nc3 {[%emt 0:01:00]} e4 {[%emt 0:00:30]} 20. Qc4 {[%emt 0:00:30]} Bd4+ {[%emt 0:00:30]} 21. Kh1 {[%emt 0:00:30]} Ne5 {[%emt 0:00:30]} 22. Qb3 {[%emt 0:00:30]} Kg7 {[%emt 0:00:00]} 23. d6 {[%emt 0:02:02]} Rh8 {[%emt 0:00:00]} 24. g3 {[%emt 0:00:20]} Rxh2+ {[%emt 0:00:00]} 25. Kxh2 {[%emt 0:00:28]} Qh8+ {[%emt 0:00:00]} 26. Kg2 {[%emt 0:00:30]} f3+ {[%emt 0:00:00]} 0-1

[Event "Turkish Cup 2024"]
[Site "Denizli"]
[Date "2024.07.30"]
[Round "1"]
[White "Coskun, Kursat"]
[Black "Gungor, Cihan Akif"]
[Result "1/2-1/2"]
[ECO "A57"]
[WhiteElo "1668"]
[BlackElo "2024"]
[Annotator "RC"]
[PlyCount "102"]
[EventDate "2024.08.01"]
[EventType "swiss"]
[EventCountry "TUR"]
[SourceTitle "playchess.com"]
[Source "ChessBase"]
[SourceQuality "1"]
[TimeControl "5400+30"]

1. d4 {[%emt 0:01:00]} Nf6 {[%emt 0:01:00]} 2. c4 {[%emt 0:00:30]} c5 {[%emt 0:00:00]} 3. d5 {[%emt 0:00:00]} b5 {[%emt 0:00:00]} 4. e3 {[%emt 0:01:00]} g6 {[%emt 0:00:30]} 5. a3 {[%emt 0:02:30]} Bg7 {[%emt 0:00:30]} 6. Nf3 {[%emt 0:00:30]} O-O {[%emt 0:00:30]} 7. Nc3 {[%emt 0:00:30]} a6 {[%emt 0:01:30]} 8. Be2 {[%emt 0:02:30]} bxc4 {[%emt 0:00:30]} 9. Bxc4 {[%emt 0:00:00]} d6 {[%emt 0:00:30]} 10. h3 {[%emt 0:01:00]} Nbd7 {[%emt 0:00:30]} 11. O-O {[%emt 0:03:30]} Nb6 {[%emt 0:00:30]} 12. Ba2 {[%emt 0:00:30]} a5 {[%emt 0:00:30]} 13. Re1 {[%emt 0:01:30]} Ba6 {[%emt 0:00:30]} 14. e4 {[%emt 0:03:30]} Nfd7 {[%emt 0:00:30]} 15. Bd2 {[%emt 0:03:30]} Nc4 {[%emt 0:01:30]} 16. Bxc4 {[%emt 0:00:30]} Bxc4 {[%emt 0:00:30]} 17. Rc1 {[%emt 0:01:30]} Rb8 {[%emt 0:00:30]} 18. Qc2 {[%emt 0:04:30]} Qc8 {[%emt 0:01:30]} 19. Bg5 {[%emt 0:10:30]} Re8 {[%emt 0:04:30]} 20. Bf4 {[%emt 0:04:30]} Qb7 {[%emt 0:04:30]} 21. Nd2 {[%emt 0:01:30]} Ba6 {[%emt 0:00:00]} 22. b3 {[%emt 0:01:30]} Rec8 {[%emt 0:00:00]} 23. Rb1 {[%emt 0:00:30]} Nb6 {[%emt 0:07:30]} 24. Nc4 {[%emt 0:07:30]} Bxc3 {[%emt 0:00:30]} 25. Qxc3 {[%emt 0:02:30]} Nxc4 {[%emt 0:01:30]} 26. bxc4 {[%emt 0:01:30]} Qxb1 {[%emt 0:00:00]} 27. Rxb1 {[%emt 0:00:30]} Rxb1+ {[%emt 0:00:00]} 28. Kh2 {[%emt 0:00:30]} a4 {[%emt 0:00:30]} 29. Qa5 {[%emt 0:00:00]} Bxc4 {[%emt 0:00:30]} 30. Qxa4 {[%emt 0:00:00]} Bb5 {[%emt 0:00:30]} 31. Qa7 {[%emt 0:00:30]} Re8 {[%emt 0:03:30]} 32. Bh6 {[%emt 0:00:30]} f6 {[%emt 0:02:30]} 33. h4 {[%emt 0:00:30]} c4 {[%emt 0:00:30]} 34. Qc7 {[%emt 0:00:30]} Rb3 {[%emt 0:00:30]} 35. a4 {[%emt 0:00:30]} Bxa4 {[%emt 0:01:30]} 36. Qxc4 {[%emt 0:00:30]} Ra8 {[%emt 0:00:00]} 37. Qc7 {[%emt 0:00:30]} Kf7 {[%emt 0:00:00]} 38. e5 {[%emt 0:04:30]} fxe5 {[%emt 0:04:30]} 39. Bg5 {[%emt 0:00:30]} Re8 {[%emt 0:00:00]} 40. Qc4 {[%emt 0:00:30]} Ra3 {[%emt 0:05:00]} 41. Qb4 {[%emt 0:00:30]} Ra1 {[%emt 0:00:30]} 42. Qg4 {[%emt 0:00:30]} Ra2 {[%emt 0:11:30]} 43. Qe6+ {[%emt 0:01:30]} Kg7 {[%emt 0:00:30]} 44. f3 {[%emt 0:00:00]} e4 {[%emt 0:07:30]} 45. Bxe7 {[%emt 0:01:00]} exf3 {[%emt 0:04:30]} 46. Qf6+ {[%emt 0:00:00]} Kg8 {[%emt 0:00:30]} 47. Qe6+ {[%emt 0:00:00]} Kg7 {[%emt 0:02:30]} 48. Qf6+ {[%emt 0:00:00]} Kg8 {[%emt 0:07:30]} 49. Qe6+ {[%emt 0:01:00]} Kg7 {[%emt 0:00:30]} 50. Qf6+ {[%emt 0:00:30]} Kg8 {[%emt 0:01:30]} 51. Qe6+ {[%emt 0:00:00]} Kg7 {[%emt 0:03:30]} 1/2-1/2